bitfinex/quotes_ETHUSD_20241203
["timestamp","ask_amount","ask_price","bid_price","bid_amount"]
[1733213321606,2.99494424,3636.5,3635.6,0.03825472]
[1733213321806,2.99494424,3636.5,3635.6,0.58825472]
[1733213322249,1.72411153,3637.0,3635.6,2.42288717]
[1733213322544,1.4276648,3637.0,3635.6,2.39538819]
[1733213322752,1.72411153,3637.3,3635.9,0.9]
[1733213323060,2.99494424,3637.4,3636.2,0.55]
[1733213323217,2.99494424,3637.0,3636.4,2.74989]
[1733213323399,2.99494424,3637.0,3636.5,0.03584792]
[1733213323939,2.99494424,3637.0,3636.5,2.78569792]
[1733213324151,1.72411153,3638.0,3636.6,1.87769363]
[1733213324452,2.99494424,3637.8,3636.6,1.33598]
[1733213325103,2.99494424,3637.4,3636.6,1.3002]
[1733213325309,2.99494424,3637.4,3636.7,0.03572285]
[1733213326140,4.37414424,3637.0,3635.7,1.2531]
[1733213326343,2.99494424,3635.8,3635.2,0.54156083]
[1733213326558,2.99494424,3635.8,3635.3,0.46560508]
[1733213326705,2.99494424,3636.2,3635.8,2.7504]
[1733213327202,1.3792,3637.0,3635.4,2.75072]
[1733213327203,2.99494424,3636.6,3635.9,2.78497575]
[1733213327398,2.99494424,3636.6,3636.0,0.02749701]
[1733213327602,2.99494424,3636.6,3636.1,2.75017]
[1733213327858,2.99494424,3636.6,3636.2,0.03451423]
[1733213328145,2.99494424,3636.3,3636.2,0.03451423]
[1733213328328,2.99494424,3636.3,3635.5,4.11964]
[1733213328643,2.99494424,3635.9,3635.5,1.369]
[1733213328939,2.99494424,3635.9,3635.6,0.0348573]
[1733213329844,2.99494424,3635.9,3635.1,1.309]
[1733213330012,2.99494424,3635.4,3634.8,2.75113]
[1733213330214,2.99494424,3635.4,3634.9,2.75109]
[1733213330802,2.99494424,3635.4,3634.5,1.3135]
[1733213330803,2.99494424,3635.4,3635.0,2.75101]
[1733213331545,2.99494424,3635.8,3635.4,1.3064]
[1733213331770,2.99494424,3635.8,3635.7,3.3005]
[1733213332425,2.99494424,3636.1,3636.0,2.75024]
[1733213332661,2.99494424,3636.1,3636.0,2.78521629]
[1733213333564,3.76815083,3636.4,3636.1,2.75015]
[1733213333932,3.76815083,3636.4,3636.2,0.03486195]
[1733213334256,3.76815083,3636.4,3636.1,2.75019]
[1733213334459,3.76815083,3636.4,3636.3,0.03480479]
[1733213334631,3.76815083,3636.4,3636.2,0.03486195]
[1733213334833,3.76815083,3636.4,3635.9,2.75033]
[1733213335082,3.76815083,3636.4,3636.0,2.78523629]
[1733213335656,3.76815083,3636.4,3636.1,2.75019]
[1733213336026,3.76815083,3636.4,3636.2,0.03486195]
[1733213336223,3.76815083,3636.4,3636.2,2.75012]
[1733213336439,3.76815083,3636.4,3636.3,0.03480479]
[1733213336759,1.3357,3637.1,3636.5,2.74989]
[1733213336760,3.76815083,3636.8,3636.5,2.74989]
[1733213336977,0.95,3638.5,3636.4,0.55]
[1733213336978,0.41130824,3637.3,3636.4,0.55]
[1733213337120,3.76815083,3637.1,3636.8,2.74961]
[1733213337463,3.76815083,3637.1,3636.9,0.0344654]
[1733213337625,3.76815083,3637.1,3636.9,2.7840454]
[1733213337821,3.76815083,3637.1,3637.0,2.74951]
[1733213338021,3.76815083,3637.1,3637.0,2.78391825]
[1733213339479,3.76815083,3637.1,3637.0,0.03440825]
[1733213339805,3.76815083,3637.1,3636.8,2.74965]
[1733213339961,3.76815083,3637.1,3636.9,0.0342611]
[1733213340314,3.76815083,3637.1,3636.9,2.7838211]
[1733213340521,3.76815083,3637.1,3637.0,2.74951]
[1733213340808,3.76815083,3637.1,3637.0,2.78371396]
[1733213342364,3.76815083,3637.1,3637.0,0.03420396]
[1733213342564,3.76815083,3637.1,3636.7,2.74974]
[1733213342793,3.76815083,3637.1,3636.8,0.03431825]
[1733213342997,3.76815083,3637.1,3636.8,2.74964]
[1733213343201,3.76815083,3637.1,3636.9,0.0342611]
[1733213343403,0.56327251,3637.7,3636.3,4.11249]
[1733213343404,3.76815083,3637.5,3637.0,1.3446]
[1733213343600,3.76815083,3637.5,3637.1,2.78358681]
[1733213343806,3.76815083,3637.5,3637.3,2.74927]
[1733213344008,3.76815083,3637.5,3637.4,2.78318541]
[1733213345314,3.76815083,3637.9,3637.4,0.31229395]
[1733213345465,3.76815083,3637.9,3637.7,2.74897]
[1733213345669,3.76815083,3637.9,3637.5,0.55]
[1733213345870,3.76815083,3637.9,3637.8,2.78265691]
[1733213346164,3.76815083,3637.9,3637.8,0.03374691]
[1733213346361,5.04725083,3637.9,3637.3,2.74926]
[1733213346579,3.76815083,3637.4,3637.3,2.74926]
[1733213347470,3.76815083,3637.4,3637.1,2.77692038]
[1733213347825,3.76815083,3637.4,3637.2,0.03272855]
[1733213348100,3.76815083,3637.4,3636.2,2.75006]
[1733213348302,3.76815083,3636.8,3636.6,2.74974]
[1733213348502,3.76815083,3636.8,3636.3,0.43405995]
[1733213349003,3.76815083,3636.8,3636.7,2.74974]
[1733213349866,1.13234148,3637.5,3637.4,2.74921]
[1733213350067,3.76815083,3637.7,3637.4,2.74921]
[1733213350386,3.76815083,3637.7,3637.5,2.74914]
[1733213350610,3.76815083,3637.7,3637.6,2.74906]
[1733213351684,3.76815083,3637.7,3637.4,2.7492]
[1733213351889,2.38514148,3638.1,3637.0,0.55]
[1733213351890,3.76815083,3637.5,3637.2,2.74935]
[1733213352086,1.278,3637.4,3636.3,1.682466]
[1733213352397,3.76815083,3637.1,3636.4,0.49746048]
[1733213352576,3.76815083,3637.1,3637.0,2.74951]
[1733213353572,3.76815083,3637.5,3637.3,2.74929]
[1733213353796,3.76815083,3637.5,3636.4,3.24742048]
[1733213353797,3.76815083,3637.5,3637.4,2.74921]
[1733213356113,3.76815083,3637.5,3637.2,2.74933]
[1733213356445,3.76815083,3637.5,3636.5,1.2467]
[1733213356654,3.76815083,3637.1,3636.9,2.74955]
[1733213356850,3.76815083,3637.5,3637.4,2.74921]
[1733213358071,3.76815083,3638.0,3637.9,2.74883]
[1733213358282,3.76815083,3638.2,3637.4,0.55]
[1733213358479,3.76815083,3638.2,3637.4,3.29919]
[1733213358768,3.76815083,3637.8,3637.7,2.74896]
[1733213359335,3.76815083,3637.8,3637.0,1.3309]
[1733213359556,3.76815083,3637.8,3637.3,2.74921]
[1733213359876,3.76815083,3637.8,3637.5,2.74913]
[1733213360027,3.76815083,3637.8,3637.7,2.74898]
[1733213360231,3.76815083,3637.8,3637.7,3.023878]
[1733213361088,2.41174148,3638.4,3637.7,0.274898]
[1733213361089,3.76815083,3638.2,3637.7,0.274898]
[1733213361377,3.76815083,3638.2,3637.9,2.7488]
[1733213362387,3.76815083,3638.2,3637.7,3.023868]
[1733213362527,1.13234148,3638.3,3638.0,0.03170296]
[1733213362874,1.13234148,3638.3,3636.9,3.29359778]
[1733213362875,2.08373285,3638.2,3636.9,3.29359778]
[1733213363035,1.1873,3638.0,3637.1,0.49466687]
[1733213363234,0.95139137,3637.9,3637.1,0.49466687]
[1733213363456,1.38932996,3637.9,3637.1,0.46244978]
[1733213363655,2.08373285,3637.8,3637.1,2.74943]
[1733213363869,3.76815083,3637.4,3637.1,2.74943]
[1733213364184,3.76815083,3637.4,3636.6,4.03136605]
[1733213364185,3.76815083,3637.4,3637.2,2.78047211]
[1733213364573,3.76815083,3637.4,3637.2,0.03112211]
[1733213365037,3.76815083,3637.4,3637.0,2.7495]
[1733213365234,3.76815083,3637.4,3637.1,0.03130085]
[1733213365515,3.76815083,3637.4,3637.1,2.78072085]
[1733213365804,3.76815083,3637.4,3637.2,3.02742208]
[1733213365961,4.90049231,3637.8,3637.3,2.77678116]
[1733213366159,3.76815083,3637.8,3637.6,2.74906]
[1733213366361,3.76815083,3637.8,3637.7,2.74898]
[1733213366587,3.76815083,3637.8,3637.7,3.142618]
[1733213366799,3.76815083,3637.8,3637.7,3.17355819]
[1733213367707,3.76815083,3637.8,3637.7,0.42457819]
[1733213367908,3.76815083,3637.8,3637.7,0.03094019]
[1733213368063,3.76815083,3637.8,3637.3,2.74928]
[1733213368265,3.76815083,3637.4,3637.0,0.53805366]
[1733213368673,1.72411153,3637.9,3637.4,1.1914]
[1733213368674,3.76815083,3637.8,3637.4,1.1914]
[1733213369002,3.76815083,3637.8,3637.4,2.74915]
[1733213369164,3.76815083,3637.8,3637.5,3.024045]
[1733213369507,3.76815083,3637.8,3637.6,2.74899]
[1733213369997,3.76815083,3637.8,3637.7,2.74898]
[1733213370407,3.76815083,3637.8,3636.7,1.1823]
[1733213370905,3.76815083,3637.8,3637.4,2.74919]
[1733213371204,3.76815083,3637.8,3637.4,0.274919]
[1733213371888,3.76815083,3637.8,3636.8,0.55]
[1733213372201,3.76815083,3637.8,3637.5,2.74909]
[1733213372603,3.76815083,3638.2,3637.6,1.1947]
[1733213372767,3.76815083,3638.2,3637.9,2.74879]
[1733213373075,3.76815083,3638.2,3638.0,2.74873]
[1733213373274,3.76815083,3638.2,3637.8,2.74891]
[1733213373472,3.76815083,3638.2,3637.9,0.449361]
[1733213373704,3.76815083,3638.2,3638.0,2.74874]
[1733213374074,3.76815083,3638.2,3637.3,1.1946]
[1733213374282,3.76815083,3637.8,3637.7,2.74898]
[1733213374478,3.76815083,3637.8,3637.6,2.74902]
[1733213375900,3.76815083,3637.8,3637.0,1.0898]
[1733213376204,3.76815083,3637.4,3637.1,0.55]
[1733213376363,3.76815083,3637.4,3637.2,0.16398]
[1733213376983,3.76815083,3637.4,3636.9,2.74959]
[1733213377186,3.76815083,3637.4,3637.3,0.02993715]
[1733213377673,3.76815083,3637.4,3637.0,2.74944]
[1733213378044,3.76815083,3637.4,3637.1,0.03005142]
[1733213378175,3.76815083,3637.4,3637.1,2.77947142]
[1733213378519,3.76815083,3637.4,3637.2,0.30794143]
[1733213379021,3.76815083,3637.4,3637.2,0.02999429]
[1733213379516,3.76815083,3637.4,3637.2,2.77935429]
[1733213380070,3.76815083,3637.4,3637.2,0.02999429]
[1733213380273,3.76815083,3637.4,3636.8,0.55]
[1733213380589,3.76815083,3637.4,3637.2,2.74934]
[1733213380786,3.76815083,3637.4,3637.3,0.274934]
[1733213380990,3.76815083,3637.4,3637.3,0.30487115]
[1733213381317,3.76815083,3637.4,3637.3,3.05416115]
[1733213381672,3.18681322,3637.5,3637.4,2.74921]
[1733213382071,3.18681322,3637.5,3637.4,2.77914002]
[1733213382314,3.18681322,3637.5,3637.4,3.47917639]
[1733213382772,3.18681322,3637.5,3637.4,4.02917639]
[1733213382973,3.18681322,3637.5,3637.4,3.47917639]
[1733213383175,3.18681322,3637.5,3637.4,4.02917639]
[1733213385287,7.54982644,3637.5,3637.4,0.02993002]
[1733213385624,4.36301322,3637.5,3637.4,0.02993002]
[1733213386400,4.36301322,3637.5,3636.6,1.32461605]
[1733213386594,3.18681322,3636.9,3636.6,1.32461605]
[1733213386925,3.18681322,3636.9,3636.8,2.74967]
[1733213387124,3.18681322,3636.9,3636.8,3.49011461]
[1733213387285,1.1762,3637.5,3636.8,0.77071747]
[1733213387490,3.18681322,3637.2,3637.1,2.74942]
[1733213387828,3.18681322,3637.2,3637.1,2.77967665]
[1733213388532,3.18681322,3637.2,3637.1,2.77969665]
[1733213390735,3.18681322,3637.2,3637.1,3.89189665]
[1733213392542,3.18681322,3637.2,3637.1,2.77969665]
[1733213392701,3.18681322,3637.2,3637.1,3.44908732]
[1733213393635,3.18681322,3637.2,3637.1,0.03025665]
[1733213393935,1.0984,3637.3,3637.0,2.74948]
[1733213394146,3.18681322,3637.1,3637.0,2.74948]
[1733213394702,3.18681322,3637.1,3636.6,2.92422605]
[1733213394910,3.18681322,3636.7,3636.4,2.74995]
[1733213395144,3.18681322,3636.5,3636.4,2.74995]
[1733213395347,3.18681322,3636.5,3635.1,3.84833]
[1733213395496,3.18681322,3636.0,3635.9,2.7503]
[1733213395703,3.18681322,3636.0,3635.9,3.08133755]
[1733213395945,3.18681322,3636.0,3635.2,2.75088]
[1733213396150,3.18681322,3635.6,3635.3,2.7508]
[1733213396435,3.18681322,3635.6,3635.5,2.75065]
[1733213397049,3.18681322,3635.6,3635.2,2.75084]
[1733213397205,3.18681322,3635.6,3635.1,1.0974]
[1733213397206,3.18681322,3635.6,3635.3,2.7508]
[1733213397408,3.18681322,3635.4,3635.3,2.7508]
[1733213397603,3.18681322,3635.4,3635.3,3.02588]
[1733213398939,3.18681322,3635.4,3635.2,2.75087]
[1733213399102,4.29681322,3635.4,3634.7,1.1454]
[1733213399302,4.29681322,3635.4,3634.8,2.75118]
[1733213399303,3.18681322,3634.9,3634.8,2.75118]
[1733213400322,4.29681322,3634.9,3634.0,0.027518]
[1733213400525,3.18681322,3634.3,3634.2,2.75163]
[1733213400720,3.18681322,3634.3,3634.2,3.42235799]
[1733213403470,1.1684,3634.3,3634.2,2.75163]
[1733213403678,4.94127722,3634.3,3634.2,2.75163]
[1733213404030,4.94127722,3634.3,3634.1,2.7517]
[1733213404398,4.94127722,3634.3,3634.2,2.75163]
[1733213405654,4.94127722,3634.3,3634.0,2.779268]
[1733213406579,4.94127722,3634.3,3634.0,0.027518]
[1733213407644,4.94127722,3634.3,3634.1,0.02949613]
[1733213408339,4.94127722,3634.3,3634.0,0.027518]
[1733213408542,4.94127722,3634.3,3634.1,0.02993141]
[1733213408797,4.94127722,3634.3,3634.2,2.75163]
[1733213408798,3.77287722,3634.3,3634.2,2.75163]
[1733213409003,3.77287722,3634.7,3634.6,2.75133]
[1733213409447,3.77287722,3634.7,3634.6,2.7810074]
[1733213412390,3.77287722,3634.7,3634.6,0.0296774]
[1733213412694,3.77287722,3634.7,3634.1,0.55]
[1733213412847,1.1127,3634.9,3634.6,0.02955963]
[1733213413186,1.1127,3634.9,3634.7,0.02950241]
[1733213413667,1.1127,3634.9,3634.5,2.75135]
[1733213413879,1.1127,3634.9,3634.8,0.0294452]
[1733213414187,4.88557722,3634.9,3634.8,0.0294452]
[1733213414547,4.85667722,3634.2,3634.0,0.027518]
[1733213414920,4.85667722,3634.2,3634.1,2.75171]
[1733213415213,4.85667722,3634.2,3634.0,0.027518]
[1733213415214,3.77287722,3634.2,3634.0,0.027518]
[1733213415376,1.1861,3634.1,3634.0,0.027518]
[1733213416433,1.1861,3634.1,3633.2,2.75238]
[1733213416638,1.1311,3633.4,3632.8,2.75269]
[1733213416923,3.77287722,3632.9,3632.8,2.75269]
[1733213417081,3.77287722,3633.3,3633.2,2.75239]
[1733213417281,4.97257722,3633.3,3632.6,3.19557355]
[1733213417477,4.97257722,3633.3,3633.0,2.7525]
[1733213417703,4.97257722,3633.3,3633.2,2.75239]
[1733213417917,4.97257722,3633.3,3632.7,2.75276]
[1733213418075,3.77287722,3632.9,3631.9,2.75333]
[1733213418301,3.77287722,3632.3,3632.2,2.75315]
[1733213419370,3.77287722,3632.7,3632.6,2.75284]
[1733213419571,3.77287722,3633.1,3633.0,2.7525]
[1733213420165,1.1628,3633.0,3632.6,2.75283]
[1733213420368,3.77287722,3632.7,3632.6,2.75283]
[1733213420570,3.77287722,3632.7,3632.1,2.75318]
[1733213420765,3.77287722,3632.3,3632.2,3.30315]
[1733213421968,3.77287722,3632.3,3632.2,3.33358753]
[1733213422679,3.77287722,3632.7,3632.6,2.75284]
[1733213422873,3.77287722,3633.1,3632.9,2.75262]
[1733213423092,3.77287722,3633.1,3633.0,2.75254]
[1733213423265,3.77287722,3633.1,3633.0,2.78251928]
[1733213423461,3.77287722,3633.1,3633.0,0.02997928]
[1733213423867,4.93567722,3633.1,3632.7,2.7527]
[1733213424071,4.93567722,3633.1,3632.2,0.55]
[1733213424414,3.77287722,3632.5,3632.4,2.753]
[1733213424563,3.77287722,3632.9,3632.4,2.753]
[1733213424769,3.77287722,3632.9,3632.7,2.75272]
[1733213425006,3.77287722,3632.9,3632.8,2.78278382]
[1733213425164,9.13,3634.7,3632.8,2.78278382]
[1733213425165,3.77287722,3633.3,3633.2,2.75237]
[1733213425372,3.77287722,3633.3,3633.2,2.78285958]
[1733213425682,3.19450917,3633.3,3633.2,2.78285958]
[1733213426729,3.19450917,3633.7,3633.6,2.75209]
[1733213427017,3.19450917,3633.7,3633.6,3.33279056]
[1733213427176,3.19450917,3633.7,3633.6,3.88279056]
[1733213427381,3.19450917,3634.1,3633.6,3.88279056]
[1733213427569,3.19450917,3634.1,3634.0,2.75178]
[1733213427775,3.19450917,3634.1,3634.0,3.33181158]
[1733213428389,3.19450917,3634.1,3634.0,3.94019374]
[1733213429585,3.77232766,3634.3,3634.1,2.75171]
[1733213429915,4.96002766,3634.3,3634.2,0.03003491]
[1733213430215,4.96002766,3634.3,3632.9,1.1187]
[1733213430419,3.77232766,3633.5,3632.9,1.1187]
[1733213430603,4.96002766,3633.5,3633.4,2.7522]
[1733213430804,4.96002766,3633.5,3633.2,2.75238]
[1733213430986,4.96002766,3633.5,3631.7,2.75348]
[1733213430987,3.77232766,3633.3,3632.0,2.75323]
[1733213431191,0.02769077,3634.3,3632.4,2.75294]
[1733213431192,3.77232766,3632.8,3632.4,2.75294]
[1733213431515,4.96002766,3632.8,3632.7,2.75277]
[1733213432115,4.96002766,3632.8,3632.5,2.75291]
[1733213432315,3.77232766,3632.4,3632.3,2.75307]
[1733213435820,4.96002766,3632.8,3632.4,2.75293]
[1733213435989,4.96002766,3632.8,3632.5,2.75292]
[1733213436417,4.96002766,3632.8,3632.1,0.55]
[1733213436621,4.96002766,3632.8,3632.6,2.75284]
[1733213437160,4.96002766,3632.8,3632.7,2.75277]
[1733213437520,4.96002766,3632.8,3632.7,0.05758956]
[1733213437717,4.96002766,3632.8,3632.7,2.75277]
[1733213437917,4.96002766,3632.8,3632.7,2.81035956]
[1733213438714,4.96002766,3632.8,3632.7,0.05758956]
[1733213438916,4.96002766,3632.8,3632.1,0.55]
[1733213438917,4.96002766,3632.8,3632.5,2.75289]
[1733213439235,3.77232766,3632.8,3632.7,2.75277]
[1733213439640,3.77232766,3632.8,3632.7,2.81035956]
[1733213440852,3.77232766,3632.8,3632.7,0.05758956]
[1733213441056,4.96612766,3632.8,3632.7,0.05758956]
[1733213441218,4.96612766,3632.8,3632.2,2.75314]
[1733213441638,4.96612766,3632.8,3632.3,0.05782182]
[1733213442049,4.96612766,3632.8,3632.4,2.75296]
[1733213442228,4.96612766,3632.8,3632.4,2.81084999]
[1733213442426,4.96612766,3632.8,3632.5,2.75291]
[1733213442651,4.96612766,3632.8,3632.4,0.05790999]
[1733213442926,1.19349077,3632.7,3632.5,0.05594835]
[1733213443143,1.1184,3632.5,3631.5,2.75367]
[1733213443368,4.89072766,3631.8,3631.6,0.05477677]
[1733213443571,4.89072766,3631.8,3631.5,2.75367]
[1733213443728,4.89072766,3631.8,3631.6,0.05477677]
[1733213443924,4.89072766,3631.8,3631.5,2.75367]
[1733213444127,4.89072766,3631.8,3631.6,2.80837677]
[1733213444325,3.77232766,3632.2,3631.6,0.05477677]
[1733213444528,3.77232766,3632.2,3631.4,0.02753417]
[1733213444776,3.77232766,3632.2,3631.5,0.05483487]
[1733213444989,4.89072766,3632.6,3631.9,2.75337]
[1733213445315,1.1184,3632.9,3632.3,0.55]
[1733213445734,1.1184,3632.9,3632.5,0.55]
[1733213446080,1.1184,3632.9,3632.6,0.054196]
[1733213446280,3.77232766,3632.7,3632.6,0.054196]
[1733213446817,1.1184,3632.9,3632.6,0.054196]
[1733213447021,4.89072766,3632.9,3632.6,0.054196]
[1733213447595,0.02769077,3632.8,3632.6,0.054196]
[1733213447780,0.02769077,3632.8,3632.3,0.55]
[1733213448118,3.77232766,3632.5,3632.4,0.05431213]
[1733213448730,3.77232766,3632.5,3631.9,2.75337]
[1733213449030,3.77232766,3632.5,3632.0,0.05454443]
[1733213449400,3.77232766,3632.5,3632.0,2.80781443]
[1733213449600,3.19616595,3632.3,3632.0,2.80781443]
[1733213450412,1.15439077,3632.2,3632.0,0.05454443]
[1733213450616,1.1267,3632.2,3632.0,0.05454443]
[1733213450817,1.1267,3632.2,3631.8,0.55]
[1733213451032,3.19616595,3631.9,3631.8,0.55]
[1733213452441,3.19616595,3631.9,3631.6,0.55]
[1733213452625,3.19616595,3631.9,3631.8,0.05466059]
[1733213452927,3.19616595,3631.9,3631.8,2.75345]
[1733213453139,3.19616595,3631.9,3631.8,2.80811059]
[1733213453636,3.19616595,3631.9,3631.8,3.69392165]
[1733213453796,3.19616595,3632.3,3631.8,0.94047165]
[1733213453990,3.19616595,3632.3,3631.9,0.55]
[1733213454333,3.19616595,3632.3,3632.0,0.05506383]
[1733213454493,3.19616595,3632.3,3632.1,3.3032]
[1733213454698,3.19616595,3632.3,3632.2,0.05494768]
[1733213457037,1.15,3632.5,3632.2,0.05494768]
[1733213457202,3.19616595,3632.3,3632.2,0.05494768]
[1733213459502,3.19616595,3632.3,3632.2,2.80809768]
[1733213459698,3.19616595,3632.3,3632.2,0.05494768]
[1733213460737,3.19616595,3632.3,3631.8,2.75344]
[1733213460902,3.19616595,3632.3,3631.9,0.05508278]
[1733213461244,3.19616595,3632.0,3631.9,0.05508278]
[1733213461698,3.19616595,3632.0,3631.4,1.1515]
[1733213461895,3.19616595,3632.0,3631.9,0.55]
[1733213462199,3.19616595,3632.0,3631.9,3.35848836]
[1733213462600,1.15,3632.5,3631.9,0.9409672]
[1733213462795,3.19616595,3632.3,3632.1,2.75315]
[1733213463032,3.19616595,3632.3,3632.2,0.05495124]
[1733213463470,3.19616595,3632.3,3631.4,2.75374]
[1733213463471,4.28736595,3632.3,3631.4,2.75374]
[1733213463619,1.0912,3632.3,3632.2,0.05494056]
[1733213463815,4.28736595,3632.3,3631.9,2.75337]
[1733213464031,4.28736595,3632.3,3631.9,0.275337]
[1733213464265,3.19616595,3632.3,3632.1,2.75316]
[1733213464448,3.19616595,3632.3,3631.9,0.55]
[1733213464658,3.19616595,3632.3,3632.2,2.80815106]
[1733213464839,3.19616595,3632.3,3632.2,2.75315]
[1733213465024,3.19616595,3632.3,3632.2,2.80815106]
[1733213466035,4.26716595,3632.7,3632.5,2.75292]
[1733213466444,4.26716595,3632.7,3632.6,0.05455886]
[1733213466766,3.19616595,3633.1,3632.8,2.75268]
[1733213467061,3.19616595,3633.1,3632.9,0.05438469]
[1733213467420,3.19616595,3633.1,3633.0,3.30254]
[1733213467867,3.19616595,3633.1,3633.0,3.35686664]
[1733213468065,3.19616595,3633.5,3633.2,2.75231]
[1733213468440,3.19616595,3633.5,3633.3,0.05415251]
[1733213468945,3.19616595,3633.5,3633.4,3.30224]
[1733213469260,1.13234148,3634.2,3633.4,3.30224]
[1733213469261,3.19616595,3633.8,3633.4,0.60409447]
[1733213469461,3.19616595,3633.8,3633.6,2.75208]
[1733213469759,3.19616595,3633.8,3633.7,0.05353979]
[1733213469921,3.19616595,3633.8,3633.6,0.55]
[1733213470118,3.19616595,3633.8,3633.7,0.05353979]
[1733213470320,3.19616595,3633.8,3633.6,0.55]
[1733213470550,3.19616595,3633.8,3633.7,0.05353979]
[1733213470758,3.19616595,3633.8,3633.5,2.7521]
[1733213470920,3.19616595,3633.8,3633.6,0.60359782]
[1733213472328,3.19616595,3633.8,3633.6,0.55]
[1733213472519,3.19616595,3633.8,3633.7,0.60353979]
[1733213473652,3.19616595,3633.8,3633.7,0.05353979]
[1733213473854,4.27566595,3633.8,3633.7,0.05353979]
[1733213474056,4.27566595,3633.8,3632.9,0.55]
[1733213474363,3.19616595,3633.2,3633.0,0.60394605]
[1733213474519,3.19616595,3633.2,3633.1,3.30247]
[1733213474718,3.19616595,3633.2,3633.1,3.35635801]
[1733213476254,3.19616595,3633.6,3633.4,2.75224]
[1733213476455,3.19616595,3633.6,3633.5,2.75216]
[1733213476653,3.19616595,3633.6,3633.5,3.35581585]
[1733213476826,3.19616595,3633.8,3633.6,3.30207]
[1733213477245,3.19616595,3633.8,3633.7,0.60353979]
[1733213477522,3.19616595,3633.8,3633.7,0.05353979]
[1733213477722,3.19616595,3633.8,3632.9,0.55]
[1733213477923,3.19616595,3633.2,3633.0,0.05394605]
[1733213478169,3.19616595,3633.2,3633.1,3.30247]
[1733213478322,3.19616595,3633.2,3633.1,3.35635801]
[1733213479984,3.19616595,3633.2,3633.1,0.60388801]
[1733213482382,3.19616595,3633.2,3633.1,0.05388801]
[1733213482673,3.19616595,3633.2,3632.6,0.55]
[1733213482894,3.19616595,3632.8,3632.6,0.55]
[1733213483259,3.22385672,3632.8,3631.8,1.1411]
[1733213483463,3.19616595,3632.2,3631.8,2.75344]
[1733213483785,3.19616595,3632.2,3631.8,0.389454]
[1733213484102,3.19616595,3632.2,3631.6,0.02753227]
[1733213484307,3.19616595,3632.2,3631.9,2.75331]
[1733213484955,3.19616595,3632.2,3631.5,1.1411]
[1733213485399,3.19616595,3632.2,3632.0,2.7533]
[1733213485572,3.19616595,3632.2,3632.1,0.55]
[1733213487296,3.19616595,3632.2,3631.9,0.55]
[1733213487478,3.19616595,3632.2,3632.0,0.55]
[1733213487678,3.19616595,3632.2,3632.1,0.55]
[1733213488605,3.19616595,3632.2,3632.1,3.30322]
[1733213488791,3.19616595,3632.6,3632.2,1.0693]
[1733213488961,3.19616595,3632.6,3632.5,0.55]
[1733213489390,3.19616595,3632.6,3632.5,2.75292]
[1733213489743,3.19616595,3632.6,3632.5,3.30292]
[1733213489911,3.19616595,3633.0,3632.9,2.75262]
[1733213490201,1.0486,3633.3,3632.9,0.55]
[1733213490366,3.19616595,3633.4,3633.2,2.75239]
[1733213490702,3.19616595,3633.4,3632.9,0.55]
[1733213490703,3.19616595,3633.4,3633.3,2.75231]
[1733213491605,3.19616595,3633.4,3632.6,1.095]
[1733213491606,3.19616595,3633.4,3633.2,2.75238]
[1733213491810,3.19616595,3633.4,3633.3,2.75231]
[1733213493309,1.13234148,3634.3,3633.3,2.75231]
[1733213493310,1.1534,3633.9,3633.7,2.75201]
[1733213493527,3.19616595,3633.8,3633.7,2.75201]
[1733213497715,3.19616595,3633.8,3633.7,2.80515503]
[1733213499481,3.19616595,3634.6,3634.2,2.75162]
[1733213499894,3.19616595,3634.6,3634.3,0.05279693]
[1733213500183,3.19616595,3634.6,3633.9,3.30186]
[1733213500385,3.19616595,3634.6,3634.0,0.05300651]
[1733213500806,3.19616595,3634.6,3634.1,2.7517]
[1733213501008,3.19616595,3634.2,3634.1,2.7517]
[1733213504186,4.30956595,3634.2,3633.9,3.30186]
[1733213504587,4.30956595,3634.2,3633.6,2.75203]
[1733213504588,4.30956595,3634.2,3634.0,2.75171]
[1733213505531,4.30956595,3634.2,3633.9,0.55]
[1733213505686,4.30956595,3634.2,3633.9,3.30183]
[1733213506595,3.19616595,3634.2,3634.0,2.75176]
[1733213508297,3.19616595,3634.2,3634.1,2.75171]
[1733213508540,0.54652452,3635.0,3634.2,0.55]
[1733213508541,3.19616595,3634.6,3634.2,0.55]
[1733213509245,3.19616595,3634.6,3634.4,2.75143]
[1733213511099,3.19616595,3634.6,3634.2,0.55]
[1733213511302,3.19616595,3634.6,3634.1,2.75165]
[1733213511999,3.19616595,3634.2,3633.9,2.75184]
[1733213512235,1.0802,3634.1,3633.6,2.75208]
[1733213512657,1.0802,3634.1,3633.3,1.0564]
[1733213512658,3.19616595,3633.8,3633.7,0.05251219]
[1733213512800,4.29146595,3633.8,3633.7,0.05251219]
[1733213513005,4.29146595,3633.8,3633.0,2.75253]
[1733213513323,3.19616595,3633.4,3633.1,0.05286751]
[1733213513498,3.19616595,3633.4,3633.1,0.33340726]
[1733213513701,1.0953,3633.8,3633.1,0.05286751]
[1733213513702,3.19616595,3633.8,3633.1,0.05286751]
[1733213513927,3.19616595,3633.8,3632.7,1.05862249]
[1733213514122,3.19616595,3633.8,3633.2,0.05310808]
[1733213514324,3.19616595,3633.8,3633.6,2.75208]
[1733213514755,3.19616595,3633.8,3633.7,0.05281791]
[1733213515111,3.19616595,3633.8,3633.6,2.75208]
[1733213515439,3.19616595,3633.8,3633.7,0.05281435]
[1733213515848,3.19616595,3633.8,3633.6,2.75208]
[1733213516093,3.19616595,3633.8,3633.7,0.05281435]
[1733213516389,3.19616595,3633.8,3633.4,2.75216]
[1733213516537,3.19616595,3633.8,3633.5,0.55]
[1733213516737,3.19616595,3633.8,3633.5,0.60284153]
[1733213517545,1.12209077,3633.7,3633.5,0.05284153]
[1733213517744,1.12209077,3633.7,3632.1,0.330322]
[1733213517745,1.0944,3633.6,3632.1,0.2756]
[1733213517981,3.19616595,3632.7,3632.5,2.75289]
[1733213518146,3.19616595,3633.1,3632.6,0.05341017]
[1733213518348,3.19616595,3633.6,3632.9,2.75255]
[1733213518569,3.19616595,3633.6,3633.0,2.80571862]
[1733213518952,3.19616595,3633.6,3633.0,0.05318862]
[1733213519156,1.0726,3633.1,3633.0,0.05318862]
[1733213519379,1.10029077,3633.1,3631.9,1.0311]
[1733213519580,1.10029077,3633.1,3632.5,2.7529]
[1733213519581,1.0726,3633.1,3632.5,2.7529]
[1733213519788,1.0726,3633.1,3632.5,3.02819]
[1733213519946,3.19616595,3633.2,3632.6,1.08338099]
[1733213520261,1.0726,3633.4,3633.0,2.75253]